Cogmind - Beta 10.1 *** ADVENTURER MODE // 2020.10.03 @ 16:56:15 Player: Trantor Result: Destroyed by C-40 Crusher with Compactor Performance ------------- Evolutions (5) 2500 Regions Visited (15) 3000 Robots Destroyed (121) 605 Value Destroyed (5133) 5133 Prototype IDs (34) 680 Alien Tech Used (0) 0 Bonus (1076) 1076 TOTAL SCORE: 12994 Bonus ------- Follower Combat Kills 461 Aligned with FarCom 300 Met Imprinter 300 Was Imprinted 300 Friendly Fire -285 Cogmind --------- Core Integrity 0/1000 Matter 155/300 Energy 100/100 System Corruption 9% Temperature Cool (0) Movement Core (50) Location -5/Waste Parts ------- > --- POWER (1) -------- (None) > --- PROPULSION (5) --- (None) > --- UTILITY (8) ------ (None) > --- WEAPON (3) ------- (None) > --- INVENTORY (4) ---- Transmission Jammer Hardened Heavy Armor Plating Enhanced Gauss Cannon Peak State ------------ > --- POWER ------------ Fission Core > --- PROPULSION ------- Carbon-fiber Leg Improved Titanium Leg Flexi-carbon Leg Flexi-carbon Leg Armored Leg > --- UTILITY ---------- Advanced Heat Sink Medium Storage Unit Large Storage Unit High-capacity Storage Unit Advanced Signal Interpreter Advanced Targeting Computer Improved Weapon Cycler Layered Medium Armor Plating > --- WEAPON ----------- Heavy Gatling Laser Heavy Phase Cannon Gamma Bomb Array > --- INVENTORY -------- Improved Deuterium Engine Fission Core Flexi-carbon Leg Flexi-carbon Leg Flexi-carbon Leg Compact Matter Pod Weapon Cycler Transmission Jammer Improved Core Shielding Hardened Medium Armor Plating Hardened Heavy Armor Plating Focal Shield Improved Thermal Defense Suite Arc Projector Wave Gun KE Penetrator Enhanced Gauss Cannon Enhanced Gauss Cannon Smartbomb Launcher Falx [Rating: 83] Favorites ----------- Power Improved Ion Engine Engine Improved Ion Engine Power Core Fission Core Reactor Zionite Light DM Reactor Propulsion Aluminum Leg Treads Improved Treads Leg Aluminum Leg Hover Unit Gravmag System Utility Large Storage Unit Device Improved Sensor Array Storage Large Storage Unit Processor Advanced Signal Interpreter Protection Makeshift Armor Plating Weapon Shotgun Energy Gun Arc Projector Energy Cannon Plasma Cannon Ballistic Gun Shotgun Launcher Missile Launcher Impact Weapon Mace Slashing Weapon Makeshift Sword Build | -11 -10 -10 -10 -9 -8 -7 -7 -7 -7 -6 -6 -6 -6 -5 -5 ------- Run | Scr Mat Min Exi Min Mat Fac Low Low Zio Pro Fac Low Low Fac Was Slots Evolved 10 | . . . . . 4 2 . . . . 2 . . 2 . Power . | . . . . . . . . . . . . . . . . Propulsion 3 | . . . . . 2 . . . . . 1 . . . . Utility 6 | . . . . . 2 1 . . . . 1 . . 2 . Weapon 1 | . . . . . . 1 . . . . . . . . . Parts Attached 176 | 6 20 3 . . 17 5 11 1 4 19 49 10 . 29 2 Power 12 | 1 2 1 . . 1 . 1 . . . 5 . . 1 . Engine 7 | 1 2 1 . . 1 . 1 . . . 1 . . . . Core 4 | . . . . . . . . . . . 3 . . 1 . Reactor 1 | . . . . . . . . . . . 1 . . . . Propulsion 49 | 2 6 2 . . 3 . 2 . . 9 15 . . 10 . Treads 1 | . . . . . . . 1 . . . . . . . . Leg 47 | 2 6 2 . . 3 . . . . 9 15 . . 10 . Wheel . | . . . . . . . . . . . . . . . . Hover 1 | . . . . . . . 1 . . . . . . . . Flight . | . . . . . . . . . . . . . . . . Utility 41 | 1 3 . . . 5 3 . . 3 2 13 2 . 9 . Device 14 | . . . . . 2 . . . 1 2 4 . . 5 . Storage 6 | 1 1 . . . . . . . . . 2 2 . . . Processor 6 | . 1 . . . . 2 . . 1 . . . . 2 . Hackware . | . . . . . . . . . . . . . . . . Protection 15 | . 1 . . . 3 1 . . 1 . 7 . . 2 . Artifact . | . . . . . . . . . . . . . . . . Weapon 74 | 2 9 . . . 8 2 8 1 1 8 16 8 . 9 2 Energy Gun 22 | 1 5 . . . . 1 2 1 1 2 3 2 . 4 . Energy Cannon 7 | . . . . . 1 . . . . 2 1 2 . 1 . Ballistic Gun 30 | 1 4 . . . 5 1 2 . . 3 8 2 . 4 . Ballistic Cannon . | . . . . . . . . . . . . . . . . Launcher 7 | . . . . . 2 . 2 . . 1 . . . . 2 Special Weapon . | . . . . . . . . . . . . . . . . Impact Weapon 1 | . . . . . . . 1 . . . . . . . . Slashing Weapon 7 | . . . . . . . 1 . . . 4 2 . . . Piercing Weapon . | . . . . . . . . . . . . . . . . Special Melee Weapon . | . . . . . . . . . . . . . . . . Unidentified Prototypes 6 | . . . . . 1 . . . 1 . 2 . . 2 . Parts Lost 38 | . 1 . . . 2 3 2 . . 11 7 . . 6 6 Power 2 | . . . . . . . 1 . . 1 . . . . . Propulsion 10 | . . . . . . 2 . . . 4 1 . . 1 2 Utility 10 | . . . . . 2 . . . . 2 . . . 2 4 Weapon 16 | . 1 . . . . 1 1 . . 4 6 . . 3 . Highest Loss Streak 4 | . 1 . . . 2 2 2 . . 4 2 . . 2 4 Average Slot Usage (%) 95 | . 98 100 100 100 99 96 87 99 97 93 89 99 100 97 66 Engine 6 | . 14 14 14 14 9 7 6 7 7 6 . . . . . Core 1 | . . . . . . . . . . . 5 6 6 5 2 Treads 1 | . . . . . . . 3 7 7 2 . . . . . Leg 25 | . 28 28 28 28 36 26 15 15 15 20 30 33 33 28 20 Hover 1 | . . . . . . . 1 7 7 2 . . . . . Device 4 | . . . . . 8 7 7 6 1 . 8 6 6 12 7 Storage 11 | . 14 14 14 14 9 7 7 7 7 7 10 16 20 17 14 Processor 11 | . 3 14 14 14 9 15 15 15 15 21 6 6 6 11 9 Protection 6 | . 9 . . . 8 7 7 7 10 7 6 9 6 2 2 Energy Gun 5 | . 13 . . . . 2 4 . 7 5 4 8 . 3 . Ballistic Gun 12 | . 14 28 28 28 16 20 11 7 7 7 10 6 13 11 . Slashing Weapon 2 | . . . . . . . 1 7 7 5 1 . . . . Naked Turns 33 | . . . . . . . . . . . . . . . 33 Heaviest Build 103 | 12 28 29 29 29 36 36 39 38 39 42 66 91 89 95 103 Greatest Support 96 | 20 20 20 20 20 40 40 23 20 20 80 96 96 96 96 91 Greatest Overweight (x) 11 | 1 1 1 1 1 10 1 1 1 1 2 11 . . 1 1 Average Overweight (x) . | . . 1 1 1 . . 1 1 1 . . . . . 1 Largest Inventory Capacity 22 | 6 12 10 10 10 10 10 10 10 10 10 14 22 22 22 22 Average Capacity 12 | 5 9 10 10 10 10 10 10 10 10 10 12 19 22 22 18 Most Carried 22 | 6 10 10 10 10 10 10 10 10 10 10 14 22 20 22 22 Average Carried 11 | 3 9 9 9 10 9 9 9 9 10 9 12 18 20 20 18 Final Capacity 22 | 6 10 10 10 10 10 10 10 10 10 10 14 22 22 22 4 Final Carried 22 | 6 10 10 10 10 10 10 10 10 10 8 14 20 20 22 4 Class Distribution -------------------- 39% | Scavenger-Mutant 23% | Mutant 11% | Scavenger-Skirmisher 7% | Skirmisher 5% | Hauler-Skirmisher 3% | Derelict-Mutant 3% | Scavenger-Gunner Dominant Class ---------------- Mutant | -10/Materials Scavenger-Mutant | -10/Mines Scavenger-Mutant | -10/Exiles Scavenger-Mutant | -9/Mines Scavenger-Mutant | -8/Materials Scavenger-Skirmisher | -7/Factory Scavenger-Skirmisher | -7/Lower Caves Scavenger-Mutant | -7/Lower Caves Scavenger-Mutant | -7/Zion Derelict-Mutant | -6/Proximity Caves Scavenger-Skirmisher | -6/Factory Skirmisher | -6/Lower Caves Hauler-Skirmisher | -6/Lower Caves Scavenger-Gunner | -5/Factory Hauler-Mutant | -5/Waste Resources | -11 -10 -10 -10 -9 -8 -7 -7 -7 -7 -6 -6 -6 -6 -5 -5 ----------- Run | Scr Mat Min Exi Min Mat Fac Low Low Zio Pro Fac Low Low Fac Was Matter Collected 4628 | 193 482 128 . . 293 70 387 25 45 348 1305 132 86 779 355 Remotely . | . . . . . . . . . . . . . . . . Salvage Created 5654 | . 635 245 . . 246 70 300 6 . 618 1418 134 71 1470 441 Parts 286 | . 36 18 . . 18 3 14 . . 40 78 4 5 68 2 Haulers Intercepted . | . . . . . . . . . . . . . . . . Recyclers Shooed 4 | . 1 . . . . . . . . . . . . 3 . Parts Field Recycled . | . . . . . . . . . . . . . . . . Retrieved Matter . | . . . . . . . . . . . . . . . . Parts Self-Destructed 44 | . . . . . . . 8 . 1 28 . 2 5 . . Prevented 9 | . . . . . . . 3 . . 6 . . . . . Kills | -11 -10 -10 -10 -9 -8 -7 -7 -7 -7 -6 -6 -6 -6 -5 -5 ------- Run | Scr Mat Min Exi Min Mat Fac Low Low Zio Pro Fac Low Low Fac Was Combat Hostiles Destroyed 111 | . 18 8 . . 5 1 6 . . 15 25 2 3 26 2 Melee 6 | . . . . . . . . . . 2 3 1 . . . Guns 83 | . 18 8 . . 5 1 2 . . 5 21 1 1 21 . Cannons 8 | . . . . . . . . . . 1 1 . 2 4 . AOE 14 | . . . . . . . 4 . . 7 . . . 1 2 Classes Destroyed 14 | . 3 1 . . . . 2 . . 2 2 1 . 2 1 Worker 2 | . . . . . . . . . . . . . . 2 . Builder 1 | . . . . . . . . . . . 1 . . . . Operator 1 | . . . . . . . . . . . 1 . . . . Watcher 5 | . 3 . . . . . . . . . 1 . . 1 . Swarmer 24 | . 6 3 . . . . . . . 3 4 . 3 5 . Grunt 51 | . 12 3 . . 2 . 3 . . 6 11 . . 14 . Brawler 3 | . . . . . . . 1 . . 1 . . . 1 . Duelist 2 | . . . . . . . 1 . . 1 . . . . . Sentry 11 | . . 2 . . 3 1 1 . . . 2 1 . 1 . Hunter 9 | . . . . . . . . . . 3 4 . . 2 . Programmer 6 | . . . . . . . . . . 1 4 . . 1 . Compactor 2 | . . . . . . . . . . . . . . . 2 Fireman 3 | . . . . . . . . . . . . . . 2 1 Mutant 1 | . . . . . . . . . . . . 1 . . . Best Kill Streak 7 | . 5 4 . . 2 1 4 . . 7 7 1 2 6 1 Combat Bots Only 7 | . 5 4 . . 2 1 4 . . 7 7 1 2 6 1 Max Kills in Single Turn 4 | . 1 1 . . 1 1 4 . . 2 2 1 1 2 1 Gunslinging 1 | . . . . . . . . . . . 1 . . 1 . Exploded 4 | . . . . . . . 4 . . 2 . . . 1 1 Melee 1 | . . . . . . . . . . 1 1 1 . . . Uniques/NPCs Destroyed . | . . . . . . . . . . . . . . . . Combat | -11 -10 -10 -10 -9 -8 -7 -7 -7 -7 -6 -6 -6 -6 -5 -5 -------- Run | Scr Mat Min Exi Min Mat Fac Low Low Zio Pro Fac Low Low Fac Was Damage Taken 9378 | . 699 198 . . 693 283 405 78 . 1383 2410 499 175 1419 1136 Core 2015 | . 170 33 . . 125 66 10 22 . 282 168 75 34 143 887 Absorbed by Shields . | . . . . . . . . . . . . . . . . Core Remaining (%) 61 | 100 . . . 18 77 . . . . 45 . . 67 . . Volleys Fired 362 | . 84 17 . . 25 3 16 3 . 29 75 12 10 65 23 Largest 3 | . 2 2 . . 2 3 3 2 . 3 3 3 3 3 3 Hottest 278 | . 100 46 . . 59 102 159 78 . 200 172 235 134 253 278 Shots Fired 824 | . 167 34 . . 48 9 42 4 . 55 196 26 29 190 24 Gun 726 | . 167 34 . . 37 9 37 2 . 41 181 18 19 180 1 Cannon 51 | . . . . . . . . . . 7 15 8 10 10 1 Launcher 47 | . . . . . 11 . 5 2 . 7 . . . . 22 Special . | . . . . . . . . . . . . . . . . Kinetic 519 | . 70 34 . . 37 8 21 1 . 21 157 8 19 143 . Thermal 220 | . 97 . . . . 1 3 . . 13 39 18 10 37 2 Explosive 46 | . . . . . 11 . 5 2 . 7 . . . . 21 Electromagnetic 39 | . . . . . . . 13 1 . 14 . . . 10 1 Robot Hit Streak 43 | . 20 22 . . 8 9 43 6 . 26 17 10 7 33 36 Robot Miss Streak 7 | . 2 2 . . 3 . 2 . . 2 5 2 7 5 . Penetration Max 1 | . . . . . . . . . . . 1 . . 1 . Secondary Targets 11 | . 1 2 . . 1 . . . . . 2 . . 5 . Max Gunslinging Chain 1 | . 1 1 . . 1 . . . . . 1 . . 1 . Shots Hit Robots 660 | . 114 30 . . 18 7 39 3 . 60 165 28 15 158 23 Core Hits 324 | . 39 14 . . 10 4 18 2 . 36 62 5 4 123 7 Critical Hits 13 | . 1 . . . . . . . . 1 8 1 . 2 . Critical Kills 3 | . . . . . . . . . . 1 2 . . . . Critical Parts Destroyed 10 | . 1 . . . . . . . . . 6 1 . 2 . Melee Attacks 71 | . . . . . . . 2 . . 13 36 20 . . . Impact 2 | . . . . . . . 2 . . . . . . . . Slashing 69 | . . . . . . . . . . 13 36 20 . . . Piercing . | . . . . . . . . . . . . . . . . Sneak Attacks . | . . . . . . . . . . . . . . . . Combat Hostiles . | . . . . . . . . . . . . . . . . Follow-up Attacks . | . . . . . . . . . . . . . . . . Damage Inflicted 16084 | . 1162 442 . . 281 96 1038 181 . 2108 3353 807 207 3392 3017 Guns 8808 | . 1162 442 . . 281 96 455 34 . 537 2345 279 80 3051 46 Cannons 845 | . . . . . . . . . . 111 202 124 127 245 36 Explosions 4715 | . . . . . . . 534 147 . 1013 . . . 86 2935 Melee 1706 | . . . . . . . 49 . . 447 806 404 . . . Ramming 10 | . . . . . . . . . . . . . . 10 . Kinetic 6294 | . 388 442 . . 281 82 254 22 . 243 1872 118 80 2512 . Thermal 3210 | . 774 . . . . 14 145 . . 339 675 285 127 769 82 Explosive 4448 | . . . . . . . 463 147 . 905 . . . . 2933 Electromagnetic 416 | . . . . . . . 127 12 . 174 . . . 101 2 Impact 49 | . . . . . . . 49 . . . . . . . . Slashing 1657 | . . . . . . . . . . 447 806 404 . . . Piercing . | . . . . . . . . . . . . . . . . Highest Corruption 9 | . 1 1 1 1 1 . . . . 1 . . . . 9 Average Corruption 1 | . 1 1 1 1 1 . . . . 1 . . . . 6 Corruption Purged . | . . . . . . . . . . . . . . . . Effects 29 | . . 8 4 . 1 . . . . 6 . . . . 10 Message Errors 10 | . . 5 3 . . . . . . . . . . . 2 Energy Discharges 4 | . . 1 . . 1 . . . . 1 . . . . 1 Parts Rejected 3 | . . . . . . . . . . . . . . . 3 Data Loss (minor) 5 | . . 1 1 . . . . . . 3 . . . . . Data Loss (major) 1 | . . . . . . . . . . . . . . . 1 Targeting Errors 4 | . . 1 . . . . . . . 1 . . . . 2 Weapon Failures 2 | . . . . . . . . . . 1 . . . . 1 Overload Shots . | . . . . . . . . . . . . . . . . Overflow Damage 98 | . . . . . . . . . . 45 39 . . 5 9 Projectiles 17 | . . . . . . . . . . 1 16 . . . . Explosions 30 | . . . . . . . . . . 16 . . . 5 9 Melee 51 | . . . . . . . . . . 28 23 . . . . Knockbacks 1 | . . . . . . . 1 . . . . . . . . Impact 1 | . . . . . . . 1 . . . . . . . . Kinetic . | . . . . . . . . . . . . . . . . Secondary . | . . . . . . . . . . . . . . . . Self-Inflicted Damage 344 | . . . . . 110 . . 64 . . . . . . 170 Shots 14 | . . . . . 6 . . 2 . . . . . . 6 Rammed . | . . . . . . . . . . . . . . . . Targets Rammed 2 | . . . . . . . . . . . . . . 2 . Kicked 2 | . . . . . . . . . . . . . . 2 . Crushed . | . . . . . . . . . . . . . . . . Highest Temperature 583 | . 312 6 . . . 24 145 . . 583 347 542 360 490 186 Average Temperature 110 | . 95 3 . . . 13 70 . . 184 100 219 137 67 86 Received Heat Transfer 2273 | . 384 87 . . 162 36 126 . . 348 459 140 . 531 . Effects 25 | . . . . . . . . . . 12 4 6 . 3 . Shutdowns 7 | . . . . . . . . . . 4 . 2 . 1 . Energy Bleed 7 | . . . . . . . . . . 3 2 1 . 1 . Interference 6 | . . . . . . . . . . 2 2 2 . . . Matter Decay 4 | . . . . . . . . . . 3 . . . 1 . Damage (minor) 1 | . . . . . . . . . . . . 1 . . . Siege Activations . | . . . . . . . . . . . . . . . . Robots Corrupted . | . . . . . . . . . . . . . . . . Combat Hostiles . | . . . . . . . . . . . . . . . . Parts Fried 1 | . . . . . . . 1 . . . . . . . . Impact Corruptions . | . . . . . . . . . . . . . . . . Robots Melted . | . . . . . . . . . . . . . . . . Combat Hostiles . | . . . . . . . . . . . . . . . . Parts Melted 16 | . 7 . . . . . . . . 2 4 . . 3 . Heat Transferred 6621 | . 2183 . . . . 37 161 . . 637 1216 548 250 1477 112 Parts Sabotaged . | . . . . . . . . . . . . . . . . Parts Stolen 15 | . . . . . . . 1 3 . 8 . 3 . . . Parts Stripped . | . . . . . . . . . . . . . . . . Power Chain Reactions 3 | . . . . . . . 1 . . 1 . . . 1 . Missiles Intercepted . | . . . . . . . . . . . . . . . . Alert | -11 -10 -10 -10 -9 -8 -7 -7 -7 -7 -6 -6 -6 -6 -5 -5 ------- Run | Scr Mat Min Exi Min Mat Fac Low Low Zio Pro Fac Low Low Fac Was Peak Influence 387 | . 151 111 . . 98 45 . . . . 176 . . 387 222 Initial 92 | . . 6 . . . . . . . . 27 . . 38 92 Average 69 | . 34 41 . . 51 15 . . . . 59 . . 232 174 Maximum Alert Level 1 | . . . . . . . . . . . . . . 1 1 Low Security (%) 91 | 100 100 100 . 100 100 100 . . . . 100 . . 30 54 Level 1 8 | . . . . . . . . . . . . . . 69 45 Level 2 . | . . . . . . . . . . . . . . . . Level 3 . | . . . . . . . . . . . . . . . . Level 4 . | . . . . . . . . . . . . . . . . Level 5 . | . . . . . . . . . . . . . . . . High Security . | . . . . . . . . . . . . . . . . Max Security . | . . . . . . . . . . . . . . . . Squads Dispatched 17 | . 2 . . . 1 2 . . . . 8 . . 4 . Investigation 8 | . 2 . . . . 1 . . . . 3 . . 2 . Extermination 5 | . . . . . . . . . . . 4 . . 1 . Reinforcement 2 | . . . . . 1 . . . . . 1 . . . . Assault . | . . . . . . . . . . . . . . . . Garrison 2 | . . . . . . 1 . . . . . . . 1 . Intercept . | . . . . . . . . . . . . . . . . Construction Impeded 1 | . . . . . . . . . . . 1 . . . . Haulers Reinforced . | . . . . . . . . . . . . . . . . Stealth | -11 -10 -10 -10 -9 -8 -7 -7 -7 -7 -6 -6 -6 -6 -5 -5 --------- Run | Scr Mat Min Exi Min Mat Fac Low Low Zio Pro Fac Low Low Fac Was Distress Signals 5 | . 2 . . . 1 . . . . . 2 . . . . Communications Jammed . | . . . . . . . . . . . . . . . . Distress Signals . | . . . . . . . . . . . . . . . . Times Spotted 192 | . 34 12 . . 5 4 7 3 . 26 49 5 4 37 6 Peak Tracking Total 6 | . 5 5 . . 3 3 5 1 . 5 4 2 3 6 4 Tactical Retreats 17 | . 4 5 . . . . 1 . . 2 2 . 1 2 . Traps | -11 -10 -10 -10 -9 -8 -7 -7 -7 -7 -6 -6 -6 -6 -5 -5 ------- Run | Scr Mat Min Exi Min Mat Fac Low Low Zio Pro Fac Low Low Fac Was Traps Triggered 9 | . 2 . . . . 1 . . . . 4 . . 2 . Indirectly . | . . . . . . . . . . . . . . . . Trap Hack Attempts . | . . . . . . . . . . . . . . . . Triggered . | . . . . . . . . . . . . . . . . Disarmed . | . . . . . . . . . . . . . . . . Reprogrammed . | . . . . . . . . . . . . . . . . Reused . | . . . . . . . . . . . . . . . . Traps Extracted . | . . . . . . . . . . . . . . . . Installed . | . . . . . . . . . . . . . . . . Triggered 2 | . . . . . . . 1 1 . . . . . . . Machines | -11 -10 -10 -10 -9 -8 -7 -7 -7 -7 -6 -6 -6 -6 -5 -5 ---------- Run | Scr Mat Min Exi Min Mat Fac Low Low Zio Pro Fac Low Low Fac Was Machines Disabled 10 | . . . . . . . 1 1 . . 7 . . 1 . Max in Single Turn 1 | . . . . . . . 1 1 . . 1 . . 1 . Machines Sabotaged . | . . . . . . . . . . . . . . . . Garrisons Compromised . | . . . . . . . . . . . . . . . . Overloaded Fab Kills . | . . . . . . . . . . . . . . . . Fab Network Shutdowns . | . . . . . . . . . . . . . . . . Hacking | -11 -10 -10 -10 -9 -8 -7 -7 -7 -7 -6 -6 -6 -6 -5 -5 --------- Run | Scr Mat Min Exi Min Mat Fac Low Low Zio Pro Fac Low Low Fac Was Machines Accessed 22 | . 10 . 5 . . . . 1 . . 3 . . 3 . Terminals 7 | . 7 . . . . . . . . . . . . . . Fabricators . | . . . . . . . . . . . . . . . . Repair Stations 5 | . 1 . . . . . . . . . 2 . . 2 . Recycling Units 2 | . 2 . . . . . . . . . . . . . . Scanalyzers 1 | . . . . . . . . . . . . . . 1 . Garrison Access 1 | . . . . . . . . . . . 1 . . . . Total Hacks 102 | . 34 . 50 . . . . 1 . . 7 . . 10 . Successful 80 | . 19 . 50 . . . . 1 . . 5 . . 5 . Failed 22 | . 15 . . . . . . . . . 2 . . 5 . Catastrophic 1 | . 1 . . . . . . . . . . . . . . Database Lockouts . | . . . . . . . . . . . . . . . . Manual 36 | . 14 . 2 . . . . . . . 12 . . 8 . Terminals 26 | . 26 . . . . . . . . . . . . . . Fabricators . | . . . . . . . . . . . . . . . . Repair Stations 15 | . 2 . . . . . . . . . 6 . . 7 . Recycling Units 6 | . 6 . . . . . . . . . . . . . . Scanalyzers 3 | . . . . . . . . . . . . . . 3 . Garrison Access 1 | . . . . . . . . . . . 1 . . . . Terminal Hacks 65 | . 14 . 50 . . . . 1 . . . . . . . Record 49 | . . . 49 . . . . . . . . . . . . Robot Analysis 1 | . 1 . . . . . . . . . . . . . . Prototype ID Bank 4 | . 4 . . . . . . . . . . . . . . Open Door 1 | . . . . . . . . 1 . . . . . . . Branch Access Points 2 | . 2 . . . . . . . . . . . . . . Unreport Threat 4 | . 4 . . . . . . . . . . . . . . Maintenance Status 1 | . 1 . . . . . . . . . . . . . . Hauler Manifests 1 | . 1 . . . . . . . . . . . . . . Registered Components 1 | . 1 . . . . . . . . . . . . . . EX-Prototype ID Bank 1 | . . . 1 . . . . . . . . . . . . Fabricator Hacks . | . . . . . . . . . . . . . . . . Repair Station Hacks 9 | . 2 . . . . . . . . . 4 . . 3 . Scan Component 5 | . 1 . . . . . . . . . 2 . . 2 . Repair 4 | . 1 . . . . . . . . . 2 . . 1 . Recycling Unit Hacks 3 | . 3 . . . . . . . . . . . . . . Retrieve Components 3 | . 3 . . . . . . . . . . . . . . Scanalyzer 2 | . . . . . . . . . . . . . . 2 . Insert Component 1 | . . . . . . . . . . . . . . 1 . Analyze 1 | . . . . . . . . . . . . . . 1 . Garrison Access Hacks 1 | . . . . . . . . . . . 1 . . . . Unlock Access 1 | . . . . . . . . . . . 1 . . . . Unauthorized Hacks . | . . . . . . . . . . . . . . . . Terminals . | . . . . . . . . . . . . . . . . Fabricators . | . . . . . . . . . . . . . . . . Repair Stations . | . . . . . . . . . . . . . . . . Recycling Units . | . . . . . . . . . . . . . . . . Scanalyzers . | . . . . . . . . . . . . . . . . Garrison Access . | . . . . . . . . . . . . . . . . Data Cores Recovered . | . . . . . . . . . . . . . . . . Used . | . . . . . . . . . . . . . . . . Hacking Detections 15 | . 9 . . . . . . . . . 3 . . 3 . Full Trace Events 5 | . 2 . . . . . . . . . 1 . . 2 . Feedback Events 1 | . 1 . . . . . . . . . . . . . . Corruption 1 | . 1 . . . . . . . . . . . . . . Feedback Blocked . | . . . . . . . . . . . . . . . . Robot Schematics Acquired . | . . . . . . . . . . . . . . . . Robots Built . | . . . . . . . . . . . . . . . . Matter . | . . . . . . . . . . . . . . . . Time . | . . . . . . . . . . . . . . . . Total Robot Build Rating . | . . . . . . . . . . . . . . . . Part Schematics Acquired 1 | . . . . . . . . . . . . . . 1 . Parts Built . | . . . . . . . . . . . . . . . . Matter . | . . . . . . . . . . . . . . . . Time . | . . . . . . . . . . . . . . . . Total Part Build Rating . | . . . . . . . . . . . . . . . . Parts Repaired 4 | . 1 . . . . . . . . . 2 . . 1 . Time 130 | . 32 . . . . . . . . . 76 . . 22 . Parts Recycled . | . . . . . . . . . . . . . . . . Recycled Matter . | . . . . . . . . . . . . . . . . Retrieved Matter . | . . . . . . . . . . . . . . . . Retrieved Components 10 | . 10 . . . . . . . . . . . . . . Parts Scanalyzed 1 | . . . . . . . . . . . . . . 1 . Part Schematics Acquired 1 | . . . . . . . . . . . . . . 1 . Parts Damaged . | . . . . . . . . . . . . . . . . Bothacking | -11 -10 -10 -10 -9 -8 -7 -7 -7 -7 -6 -6 -6 -6 -5 -5 ------------ Run | Scr Mat Min Exi Min Mat Fac Low Low Zio Pro Fac Low Low Fac Was Used RIF Installer . | . . . . . . . . . . . . . . . . Robots Hacked . | . . . . . . . . . . . . . . . . Non-combat . | . . . . . . . . . . . . . . . . Combat . | . . . . . . . . . . . . . . . . Robot Hacks Applied . | . . . . . . . . . . . . . . . . Relay Couplers Released 4 | . . . . . . . . . . . 4 . . . . Programmers 4 | . . . . . . . . . . . 4 . . . . Robots Rewired . | . . . . . . . . . . . . . . . . Allies Hacked . | . . . . . . . . . . . . . . . . Hacks Repelled . | . . . . . . . . . . . . . . . . Allies | -11 -10 -10 -10 -9 -8 -7 -7 -7 -7 -6 -6 -6 -6 -5 -5 -------- Run | Scr Mat Min Exi Min Mat Fac Low Low Zio Pro Fac Low Low Fac Was Total Allies 14 | . . . . . . . . . 4 . 6 . . 4 . Largest Group 4 | . . . . . . . . . 4 4 3 . . 4 1 Highest-Rated Group 210 | . . . . . . . . . 147 147 210 . . 112 28 Highest-Rated Ally 137 | . . . . . . . . . 39 39 137 . . 28 28 Zionite Dispatches 4 | . . . . . . . . . . . 3 . . 1 . Light 1 | . . . . . . . . . . . 1 . . . . Fire 1 | . . . . . . . . . . . . . . 1 . Hacker 1 | . . . . . . . . . . . 1 . . . . Hero 1 | . . . . . . . . . . . 1 . . . . Total Orders . | . . . . . . . . . . . . . . . . Ally Attacks 137 | . . . . . . . . . . 32 87 . . 15 3 Total Damage 2669 | . . . . . . . . . . 572 1843 . . 220 34 Kills 15 | . . . . . . . . . . 2 12 . . 1 . Allies Corrupted 1 | . . . . . . . . . . . . . . 1 . Allies Melted . | . . . . . . . . . . . . . . . . Intel | -11 -10 -10 -10 -9 -8 -7 -7 -7 -7 -6 -6 -6 -6 -5 -5 ------- Run | Scr Mat Min Exi Min Mat Fac Low Low Zio Pro Fac Low Low Fac Was Robot Analysis Total 1 | . 1 . . . . . . . . . . . . . . Derelict Logs Recovered 8 | . . 1 . . . . 1 2 2 2 . . . . . Drone Launches . | . . . . . . . . . . . . . . . . Drone Recoveries . | . . . . . . . . . . . . . . . . Zionite Intel Received 2 | . . . . . . . . . . . 1 . . 1 . Component Stockpiles 1 | . . . . . . . . . . . 1 . . . . Unaware Analyses 1 | . . . . . . . . . . . . . . 1 . Exploration | -11 -10 -10 -10 -9 -8 -7 -7 -7 -7 -6 -6 -6 -6 -5 -5 ------------- Run | Scr Mat Min Exi Min Mat Fac Low Low Zio Pro Fac Low Low Fac Was Turns Passed 17547 | 86 1998 1231 944 203 822 308 1231 693 2683 1415 2974 1372 389 985 213 Spaces Moved 10748 | 62 1065 769 628 134 302 184 747 444 1754 878 1880 1030 256 541 74 Core 12 | 6 . . . . 2 . . . . . 4 . . . . Treads 1 | . . . . . . . 1 . . . . . . . . Legs 10735 | 56 1065 769 628 134 300 184 746 444 1754 878 1876 1030 256 541 74 Wheels . | . . . . . . . . . . . . . . . . Hover . | . . . . . . . . . . . . . . . . Flight . | . . . . . . . . . . . . . . . . Fastest Speed 50 | 50 120 150 150 150 120 120 150 150 150 120 120 122 122 122 150 Average Speed 138 | 116 148 150 150 150 122 126 150 150 150 138 124 122 122 125 150 Slowest Speed 600 | 120 150 150 150 150 550 150 180 150 150 180 600 122 122 152 152 Overloaded Moves . | . . . . . . . . . . . . . . . . Propulsion Burnouts . | . . . . . . . . . . . . . . . . Robots Hopped . | . . . . . . . . . . . . . . . . Cave-ins Triggered 2 | . . . . . 1 . . . . . . 1 . . . Exploration Rate (%) 53 | 4 98 100 94 25 15 5 69 62 93 80 35 87 23 16 44 Regions Visited 15 Branch Regions 9 Pre-discovered Areas 5 | . . 1 1 . . . . 1 2 . . . . . . Known Exits Taken 13 | . 1 1 1 1 1 1 1 1 1 1 1 1 1 . . Unknown Exits Taken 1 | 1 . . . . . . . . . . . . . . . Scrap Searched 19 | . . 1 . . . . 6 2 3 4 . 3 . . . Spaces Dug 215 | . . . . . 166 . 13 12 . . 14 10 . . . Terrain Destroyed 478 | . . . . . 166 . 44 29 . 47 15 10 . 5 162 Melee 24 | . . . . . . . . . . . 14 10 . . . Projectile 2 | . . . . . . . . . . . 1 . . 1 . AOE 452 | . . . . . 166 . 44 29 . 47 . . . 4 162 Terrain Rammed . | . . . . . . . . . . . . . . . . Walls Destroyed . | . . . . . . . . . . . . . . . . Machines Disabled . | . . . . . . . . . . . . . . . . Actions | -11 -10 -10 -10 -9 -8 -7 -7 -7 -7 -6 -6 -6 -6 -5 -5 --------- Run | Scr Mat Min Exi Min Mat Fac Low Low Zio Pro Fac Low Low Fac Was Total 12683 | 73 1343 819 631 136 703 253 818 466 1807 1009 2334 1081 311 739 160 Wait 1115 | . 137 16 . 3 349 57 34 17 45 64 220 3 46 71 53 Move 10733 | 61 1064 768 627 133 301 183 746 443 1753 877 1879 1028 255 541 74 Hop . | . . . . . . . . . . . . . . . . Pick Up 103 | 6 15 6 2 . 6 3 5 2 1 2 34 6 . 11 4 Fast Attach 56 | 6 3 . . . . . 4 . 4 9 18 . . 12 . Attach 30 | . 3 . . . 6 2 2 . . 3 4 3 . 6 1 Detach 7 | . 1 . . . . . 1 . . . . 1 . 4 . Swap 90 | . 14 3 . . 11 3 5 1 . 7 27 7 . 11 1 Drop 109 | . 22 9 2 . 5 2 3 . 4 5 37 . . 16 4 Fire 362 | . 84 17 . . 25 3 16 3 . 29 75 12 10 65 23 Melee 71 | . . . . . . . 2 . . 13 36 20 . . . Ram . | . . . . . . . . . . . . . . . . Kick 2 | . . . . . . . . . . . . . . 2 . Crush . | . . . . . . . . . . . . . . . . Escape Stasis 5 | . . . . . . . . . . . 4 1 . . . Rewire . | . . . . . . . . . . . . . . . . Trap . | . . . . . . . . . . . . . . . . Miscellaneous . | . . . . . . . . . . . . . . . . Route ------- -11/Scrapyard -10/Materials (discovered 5 exits: *Mat x3 / *Min x2) -10/Mines (discovered 3 exits: *Mat x2 / *Exi) -10/Exiles (discovered 2 exits: *Min x2) -9/Mines -8/Materials -7/Factory -7/Lower Caves -7/Lower Caves (discovered 2 exits: *Fac / *Zio) -7/Zion -6/Proximity Caves -6/Factory (discovered 4 exits: *Fac x2 / *Low / Gar) -6/Lower Caves -6/Lower Caves -5/Factory -5/Waste History --------- Turn | Location | Event 12 | -11/Scrapyard | Discovered new exit (range 16) 87 | -11/Scrapyard | Entered Materials 317 | -10/Materials | Build established: Mutant 565 | -10/Materials | Repaired Particle Gun 683 | -10/Materials | Identified exit to Mines 871 | -10/Materials | Discovered new exit (range 7) 1320 | -10/Materials | Discovered new exit (range 9) 1582 | -10/Materials | Discovered new exit (range 11) 1613 | -10/Materials | Identified exit to Materials 1844 | -10/Materials | Core integrity fell below 50% 2085 | -10/Materials | Entered Mines 2086 | -10/Mines | Learned location of Storage (-7) 2174 | -10/Mines | Build established: Scavenger-Mutant 2398 | -10/Mines | Discovered exit to Materials (range 4) 2423 | -10/Mines | Learned location of 1 exit from Materials 2699 | -10/Mines | Found a damaged Exp. Sensor Array with a note attached 2703 | -10/Mines | Found Prototype Device 2935 | -10/Mines | Core integrity fell below 20% 3007 | -10/Mines | Discovered exit to Materials (range 6) 3157 | -10/Mines | Deemed a non-threat by the Exiles lab entrance 3158 | -10/Mines | Discovered new exit (range 5) 3163 | -10/Mines | Identified exit to Exiles 3316 | -10/Mines | Entered Exiles 3337 | -10/Exiles | Discovered new exit (range 15) 3387 | -10/Exiles | Identified exit to Mines 3418 | -10/Exiles | Met 8R-AWN 3442 | -10/Exiles | Met EX-HEX 3507 | -10/Exiles | Met EX-BIN 3544 | -10/Exiles | Aligned with FarCom system 3546 | -10/Exiles | Given EX-Vault access code 3640 | -10/Exiles | Opened EX-Vault 3665 | -10/Exiles | Found Superbattery 3674 | -10/Exiles | Found Latent Energy Streamer 3711 | -10/Exiles | Warned to stay clear of 0b10 Research branches 3754 | -10/Exiles | Met EX-DEC 3789 | -10/Exiles | Learned location of Zion (-7) 3841 | -10/Exiles | Discovered exit to Mines (range 14) 4021 | -10/Exiles | Visited The Gauntlet 4260 | -10/Exiles | Stole two prototypes: Superbattery, Latent Energy Streamer 4260 | -10/Exiles | Entered Mines 4299 | -9/Mines | Discovered new exit (range 10) 4311 | -9/Mines | Identified exit to Materials 4463 | -9/Mines | Entered Materials 4463 | -8/Materials | Evolved 4 slots: Propulsion x2, Utility x2 4464 | -8/Materials | Identified exit to Factory 5151 | -8/Materials | Crushed by falling debris 5173 | -8/Materials | Identified Exp. Sensor Array 5285 | -8/Materials | Entered Factory 5285 | -7/Factory | Evolved 2 slots: Utility x1, Weapon x1 5287 | -7/Factory | FarCom data flow suspended 5459 | -7/Factory | Build established: Scavenger-Skirmisher 5531 | -7/Factory | Garrison activated, responded to threat 5587 | -7/Factory | Discovered new exit (range 4) 5591 | -7/Factory | Identified exit to Lower Caves 5593 | -7/Factory | Entered Lower Caves 6085 | -7/Lower Caves | Attracted the attention of an 0b10 outpost 6170 | -7/Lower Caves | Learned Factory emergency access door positions 6475 | -7/Lower Caves | Spotted UI-N6J(f) 6476 | -7/Lower Caves | Encountered a Master Thief 6483 | -7/Lower Caves | Superbattery stolen by Master Thief 6535 | -7/Lower Caves | Encountered a Warlord checkpoint 6550 | -7/Lower Caves | Build established: Scavenger-Mutant 6766 | -7/Lower Caves | Discovered new exit (range 5) 6772 | -7/Lower Caves | Identified exit to Lower Caves 6824 | -7/Lower Caves | Entered another Lower Caves area 6830 | -7/Lower Caves | Encountered a Warlord checkpoint 6832 | -7/Lower Caves | Discovered new exit (range 5) 6838 | -7/Lower Caves | Identified exit to Factory 7163 | -7/Lower Caves | Spotted DA-DVP(f) 7163 | -7/Lower Caves | Latent Energy Streamer stolen by Master Thief 7164 | -7/Lower Caves | Encountered a Master Thief 7394 | -7/Lower Caves | Spotted ZU-RQ0(f) 7395 | -7/Lower Caves | Encountered a Master Thief 7415 | -7/Lower Caves | KE Penetrator stolen by Master Thief 7431 | -7/Lower Caves | Spotted 1T-U23(f) 7432 | -7/Lower Caves | Encountered a Master Thief 7434 | -7/Lower Caves | Exp. Sensor Array stolen by Master Thief 7479 | -7/Lower Caves | Discovered new exit (range 10) 7509 | -7/Lower Caves | Identified exit to Zion 7517 | -7/Lower Caves | Entered Zion 7598 | -7/Zion | Discovered new exit (range 12) 7615 | -7/Zion | Identified exit to Proximity Caves 8681 | -7/Zion | Learned location of 2 exits from Factory 8863 | -7/Zion | Given the Hacking Drone Bay 8871 | -7/Zion | Found Prototype Device 8871 | -7/Zion | Identified Hacking Drone Bay 9158 | -7/Zion | Build established: Mutant 9354 | -7/Zion | Imprinted 9356 | -7/Zion | Declared Zion's savior 9634 | -7/Zion | Learned location of Quarantine (-2) 9794 | -7/Zion | Learned Factory terminal intel 10200 | -7/Zion | Entered Proximity Caves 10200 | -6/Proximity Caves | Accompanied by 4 allies 10312 | -6/Proximity Caves | Spotted 7W-D3B(f) 10314 | -6/Proximity Caves | Encountered a Master Thief 10318 | -6/Proximity Caves | Proton Cannon stolen by Master Thief 10448 | -6/Proximity Caves | Build established: Derelict-Mutant 10665 | -6/Proximity Caves | Spotted EN-6RJ(f) 10666 | -6/Proximity Caves | Encountered a Master Thief 10673 | -6/Proximity Caves | Allies destroyed EN-6RJ(f) 10795 | -6/Proximity Caves | Spotted Y3-RON(f) 10796 | -6/Proximity Caves | Encountered a Master Thief 10799 | -6/Proximity Caves | Flexi-carbon Leg stolen by Master Thief 11075 | -6/Proximity Caves | Build established: Scavenger-Mutant 11335 | -6/Proximity Caves | Destroyed 7 combat bots 11374 | -6/Proximity Caves | Spotted Y8-HWO(f) 11374 | -6/Proximity Caves | Spotted P0-PI4(f) 11375 | -6/Proximity Caves | Encountered a Master Thief 11375 | -6/Proximity Caves | Encountered a Master Thief 11375 | -6/Proximity Caves | Flexi-carbon Leg stolen by Master Thief 11382 | -6/Proximity Caves | Flexi-carbon Leg stolen by Master Thief 11406 | -6/Proximity Caves | Spotted SA-BFK(f) 11407 | -6/Proximity Caves | Encountered a Master Thief 11418 | -6/Proximity Caves | Learned Factory security intel 11432 | -6/Proximity Caves | Adv. Heat Sink stolen by Master Thief 11486 | -6/Proximity Caves | Lost 4 parts (1p2n1w) 11523 | -6/Proximity Caves | Spotted 8K-PSY(f) 11525 | -6/Proximity Caves | Encountered a Master Thief 11566 | -6/Proximity Caves | Attracted the attention of an 0b10 checkpoint 11567 | -6/Proximity Caves | Phase Cannon stolen by Master Thief 11570 | -6/Proximity Caves | Core integrity fell below 50% 11615 | -6/Proximity Caves | Entered Factory 11615 | -6/Factory | Evolved 2 slots: Propulsion x1, Utility x1 11616 | -6/Factory | Identified exit to Lower Caves 11616 | -6/Factory | Identified exit to Factory 11619 | -6/Factory | Loaded intel: 20 terminal locations 11842 | -6/Factory | Zion Light squad teleported in 11892 | -6/Factory | Identified exit to Garrison 12219 | -6/Factory | Retrieved Zion intel report: Component Stockpiles 12373 | -6/Factory | Zion hero teleported in (1C-UTU) 12849 | -6/Factory | Build established: Scavenger-Skirmisher 13059 | -6/Factory | Discovered exit to Factory (range 6) 13371 | -6/Factory | Zion Hacker squad teleported in 13581 | -6/Factory | Terminal network hard line cut 14029 | -6/Factory | Build established: Mutant 14341 | -6/Factory | Build established: Skirmisher 14425 | -6/Factory | Repaired Lrg. Storage Unit 14498 | -6/Factory | Repaired Hvy. Machine Gun 14587 | -6/Factory | Destroyed 7 combat bots 14589 | -6/Factory | Entered Lower Caves 14686 | -6/Lower Caves | Spotted QZ-U2J(f) 14687 | -6/Lower Caves | Encountered a Master Thief 14691 | -6/Lower Caves | Flexi-carbon Leg stolen by Master Thief 14839 | -6/Lower Caves | Encountered a Warlord checkpoint 14899 | -6/Lower Caves | Attracted the attention of an 0b10 checkpoint 15213 | -6/Lower Caves | Attacked by a delusional Derelict stockpiling parts 15545 | -6/Lower Caves | Build established: Hauler-Skirmisher 15796 | -6/Lower Caves | Crushed by falling debris 15872 | -6/Lower Caves | Spotted U9-0AC(f) 15872 | -6/Lower Caves | Spotted D6-BNU(f) 15874 | -6/Lower Caves | Encountered a Master Thief 15874 | -6/Lower Caves | Encountered a Master Thief 15880 | -6/Lower Caves | Plasma Rifle stolen by Master Thief 15891 | -6/Lower Caves | Force Rifle stolen by Master Thief 15934 | -6/Lower Caves | Discovered new exit (range 4) 15944 | -6/Lower Caves | Identified exit to Lower Caves 15961 | -6/Lower Caves | Entered another Lower Caves area 16122 | -6/Lower Caves | Discovered exit to Factory (range 6) 16350 | -6/Lower Caves | Entered Factory 16350 | -5/Factory | Evolved 2 slots: Utility x2 16418 | -5/Factory | Repaired Imp. Titanium Leg 16743 | -5/Factory | Garrison activated, responded to threat 17149 | -5/Factory | Build established: Scavenger-Gunner 17199 | -5/Factory | Zion Fire squad teleported in 17227 | -5/Factory | Retrieved Zion intel report: Unaware Analyses 17262 | -5/Factory | P-70 Sage assimilated allied L8-KUY(i) 17284 | -5/Factory | P-70 Sage assimilated allied 5D-7LZ(i) 17335 | -5/Factory | Sucked down chute 17335 | -5/Factory | Entered Waste 17344 | -5/Waste | Found Gamma Bomb Array 17350 | -5/Waste | EMP discharged 17357 | -5/Waste | Spotted C-40 Crusher 17360 | -5/Waste | 1 allies followed down the chute 17363 | -5/Waste | Destroyed C-40 Crusher 17388 | -5/Waste | Spotted C-40 Crusher 17406 | -5/Waste | Spotted C-40 Crusher 17423 | -5/Waste | Destroyed C-40 Crusher 17438 | -5/Waste | Crushed by Compactor (1 part destroyed, 2 dropped) 17445 | -5/Waste | Crushed by Compactor (1 part destroyed) 17450 | -5/Waste | EMP discharged 17484 | -5/Waste | Spotted C-40 Crusher 17493 | -5/Waste | Spotted C-40 Crusher 17510 | -5/Waste | Crushed by Compactor (1 part destroyed, 1 dropped) 17512 | -5/Waste | Crushed by Compactor (1 part destroyed, 2 dropped) 17513 | -5/Waste | Crushed by Compactor (1 part destroyed, 2 dropped) 17515 | -5/Waste | Crushed by Compactor (1 part destroyed) 17526 | -5/Waste | Core integrity fell below 50% 17540 | -5/Waste | Core integrity fell below 20% 17546 | -5/Waste | Lost 4 parts (1n3u) 17548 | -5/Waste | Destroyed by C-40 Crusher with Compactor Last Messages --------------- 17513_ Com. Matter Pod crushed. 17513_ KE Penetrator crushed. 17513_ Flexi-carbon Leg crushed. 17513_ Med. Storage Unit crushed. 17513_ Adv. Targeting Computer crushed. 17513_ Imp. Weapon Cycler crushed. 17515_ System corrupted: Energy discharge (-26). 17515_ Imp. Thermal Defense Suite crushed. 17515_ Focal Shield crushed. 17515_ Hcp. Storage Unit crushed. 17515_ Wave Gun crushed. 17515_ Adv. Signal Interpreter crushed. 17516_ Arc Projector crushed. 17516_ Hvy. Gatling Laser crushed. 17516_ Fission Core crushed. 17516_ Enh. Gauss Cannon crushed. 17537_ CIGY<:2<9DJ||V,D|ILZK,R#W|/KF 17539_ Weapon Cycler crushed. 17540_ ALERT: Foreign system detected. Charging EMP. [Achievement: This Is Interesting...] Map ----- +----------------------------------------------------+ | #???????????????????????????????????????? | | ####?????????????????????????????????????? | | ] #?????????????????????????????????????? | | #?????????????????????????????????????? | | ### ##????????????????????????????????????? | | # ##????????????????????????????????????? | | # ##????????????????????????????????????? | | ###?????????????????????????????????????? | | #?????????????????????????????????????? | | ###?????????????????????????????????????? | | # # #??????????????????????????????????????? | | ## #???? ??????????????????????????????? | | # # # #???# #?????????????????????????????? | | ##???# #?????????????????????????????? | | # #??# ####??????????###?????????????? | | # #??# ?????????? ??????????????? | | # # #??# ?????????? ???????????????? | | # # #??# ?????????? ????????????????? | | # # #??# ?????????? ?????????????????? | | # # # ##??# #?????????? #?????????????????? | | ##???# #????????? #?????????????????? | | # #???# #????????C #?????????????????? | | # ##???# #???????CC #?????????????????? | | # # ##### ######## #######???????????? | | # !!!/ ????????? | | # CC@CC ????????? | | # CC*CC ????????? | | # !=== ????????? | | ### ######## ######## ######## ?????????? | | ??# #??????# #??????? #?????????????????? | | ??# #??????# #???????? #?????????????????? | | ??# ???????# #???????? #?????????????????? | | ??# ???????# #????????? #?????????????????? | | ??#####???????######?????????###?????????????????? | | ?????????????????????????????????????????????????? | | ?????????????????????????????????????????????????? | | ?????????????????????????????????????????????????? | | ?????????????????????????????????????????????????? | | ?????????????????????????????????????????????????? | | ?????????????????????????????????????????????????? | | ?????????????????????????????????????????????????? | | ?????????????????????????????????????????????????? | | ?????????????????????????????????????????????????? | | ?????????????????????????????????????????????????? | | ?????????????????????????????????????????????????? | | ?????????????????????????????????????????????????? | | ?????????????????????????????????????????????????? | | ?????????????????????????????????????????????????? | | ?????????????????????????????????????????????????? | | ?????????????????????????????????????????????????? | +----------------------------------------------------+ Best States ------------- Heat Dissipation 78 Energy Generation 18 Energy Capacity 310 Matter Stores 300 Matter Capacity 300 Sight Range 16 Robot Scan Range 30 Terrain Scan Density 10 Armor Coverage 600 Resistance: KI 20 Resistance: TH 45 Resistance: EX 20 Resistance: EM 20 Resistance: I 20 Resistance: S 20 Resistance: P 20 Core Shielding 30 Weapon Cycling 20 Phase Shifting 5 Evasion (%) 45 Targeting Accuracy 8 Salvage Targeting 4 Offensive Hacking 10 Item Schematics ----------------- Weapon Cycler | -5/Factory | Scanalyzed Robot Schematics ------------------ None Fabricated ------------ Nothing Alien Tech Used ----------------- None Achievements -------------- Heroic Deeds The One This Is Interesting... Challenges ------------ None Game ------ Seed UtilityFlyingStorm Manual? 0 Play Time 03:45:37 Cumulative 36.2 hours Start 2020.10.02 @ 18:46:19 End 2020.10.03 @ 16:56:15 Sessions 11 Manual Loads 0 Difficulty Adventurer Special Mode None Game No. 15 Rogue 0 Adventurer 15 Explorer 0 Win Type - Total 0 Types 0/0/0/0/0/0/0/0/0 Lore% 25 Gallery% 28 Achievement% 23 Wizard Run 0 Options --------- ASCII 0 Keyboard 1 Movement Vi Keybinds 1 Fullscreen 2 Font 14/SmallcapsGlow Map View 84x54 Tactical HUD 1 Map Filters NONE Filters NONE Steam 1 RUN: 9bb466d7-2f09-477e-bb05-f11379414da1